fUSD/lending_fUSD_20260409
["ID","MTS","AMOUNT","RATE_DAILY","PERIOD"]
[420156532,1775735453310,-934.47175,0.00014394,2]
[420156533,1775735453320,-335.411526,0.00014394,2]
[420156534,1775735453330,-859.514632,0.00014394,2]
[420156535,1775735453340,-228.517343,0.00014394,2]
[420156536,1775735453351,-151.0,0.00014394,2]
[420156537,1775735453361,-170.513675,0.00014394,2]
[420156538,1775735453371,-335.411526,0.00014394,2]
[420156539,1775735453381,-151.0,0.00014394,2]
[420156540,1775735453390,-170.513675,0.00014394,2]
[420156541,1775735453400,-151.0,0.00014394,2]
[420156542,1775735453410,-170.513675,0.00014394,2]
[420156543,1775735453420,-151.0,0.00014394,2]
[420156544,1775735453430,-170.593914,0.00014394,2]
[420156545,1775735453439,-170.593914,0.00014394,2]
[420156546,1775735453449,-151.0,0.00014394,2]
[420156547,1775735453459,-170.593914,0.00014394,2]
[420156548,1775735453469,-170.593914,0.00014394,2]
[420156549,1775735453479,-231.935041,0.00014394,2]
[420156550,1775735453489,-165.728537,0.00014394,2]
[420156551,1775735453499,-165.728537,0.00014394,2]
[420156552,1775735453508,-178.765211,0.00014394,2]
[420156553,1775735453518,-178.765211,0.00014394,2]
[420156554,1775735453528,-165.728537,0.00014394,2]
[420156555,1775735453538,-178.765211,0.00014394,2]
[420156556,1775735453548,-165.728537,0.00014394,2]
[420156557,1775735453558,-178.765211,0.00014394,2]
[420156558,1775735453568,-151.0,0.00014394,2]
[420156559,1775735453577,-228.366184,0.00014394,2]
[420156560,1775735453588,-2501.266401,0.00014394,2]
[420156561,1775735453598,-2501.266401,0.00014394,2]
[420156562,1775735453608,-228.366184,0.00014394,2]
[420156563,1775735453619,-557.766277,0.00014394,2]
[420156564,1775735453629,-151.0,0.00014394,2]
[420156565,1775735453639,-159.363601,0.00014394,2]
[420156566,1775735453648,-151.0,0.00014394,2]
[420156567,1775735453658,-2501.266401,0.00014394,2]
[420156568,1775735453667,-171.867948,0.00014394,2]
[420156569,1775735453676,-228.366184,0.00014394,2]
[420156570,1775735453826,-557.766277,0.00014394,2]
[420156571,1775735453837,-248.963988,0.00014394,2]
[420156572,1775735453846,-151.0,0.00014394,2]
[420156573,1775735453856,-2501.266401,0.00014394,2]
[420156574,1775735453866,-171.867948,0.00014394,2]
[420156575,1775735453875,-228.366184,0.00014394,2]
[420156576,1775735453885,-344.108376,0.00014394,2]
[420156577,1775735453895,-557.766277,0.00014394,2]
[420156578,1775735453905,-151.0,0.00014394,2]
[420156579,1775735453914,-151.0,0.00014394,2]
[420156580,1775735453924,-714.675199,0.00014394,2]
[420156581,1775735453933,-344.108376,0.00014394,2]
[420156582,1775735453943,-557.766277,0.00014394,2]
[420156583,1775735453953,-151.0,0.00014394,2]
[420156584,1775735453962,-344.108376,0.00014394,2]
[420156585,1775735453972,-714.675199,0.00014394,2]
[420156586,1775735453982,-151.0,0.00014394,2]
[420156587,1775735453992,-344.108376,0.00014394,2]
[420156588,1775735454002,-714.675199,0.00014394,2]
[420156589,1775735454011,-171.867948,0.00014394,2]
[420156590,1775735454021,-714.675199,0.00014394,2]
[420156591,1775735454030,-199.3096,0.000144,2]
[420156592,1775735454040,-3292.0,0.00014414,2]
[420156593,1775735454050,-151.41120788,0.00014431,2]
[420156594,1775735454059,-177.5618893,0.00014448,5]
[420156595,1775735454068,-259.59632991,0.00014506,2]
[420156596,1775735454078,-786.15,0.00014521,2]
[420156597,1775735454088,-258.37,0.00014523,2]
[420156598,1775735454098,-630.73809,0.0001458,2]
[420156599,1775735454108,-500.0,0.0001458,2]
[420156600,1775735454118,-529.9867115,0.0001458,2]
[420156601,1775735454128,-500.0,0.0001458,2]
[420156602,1775735454138,-500.0,0.0001458,2]
[420156603,1775735454148,-500.0,0.0001458,2]
[420156604,1775735454157,-151.0,0.00014594,2]
[420156605,1775735454167,-151.0,0.00014594,2]
[420156606,1775735454177,-151.0,0.00014594,2]
[420156607,1775735454186,-255.890544,0.00014594,2]
[420156608,1775735454196,-151.0,0.00014594,2]
[420156609,1775735454206,-206.258725,0.00014594,2]
[420156610,1775735454216,-26243.05274715,0.00014609,2]
[420156611,1775735454226,-371.427863,0.00014609,2]
[420156612,1775735454236,-371.427863,0.00014609,2]
[420156613,1775735454247,-371.427863,0.00014609,2]
[420156614,1775735454256,-151.0,0.00014609,2]
[420156615,1775735454267,-371.427863,0.00014609,2]
[420156616,1775735454277,-1293.90316,0.00014609,2]
[420156617,1775735454287,-151.0,0.00014609,2]
[420156618,1775735454296,-1293.90316,0.00014609,2]
[420156619,1775735454307,-1293.90316,0.00014609,2]
[420156620,1775735454317,-206.655348,0.00014609,2]
[420156621,1775735454327,-550.922457,0.00014609,2]
[420156622,1775735454337,-509.32745,0.00014609,2]
[420156623,1775735454347,-1293.90316,0.00014609,2]
[420156624,1775735454357,-206.655348,0.00014609,2]
[420156625,1775735454367,-550.922457,0.00014609,2]
[420156626,1775735454377,-509.32745,0.00014609,2]
[420156627,1775735454387,-151.0,0.00014609,2]
[420156628,1775735454397,-550.922457,0.00014609,2]
[420156629,1775735454407,-206.655348,0.00014609,2]
[420156630,1775735454417,-151.0,0.00014609,2]
[420156631,1775735454427,-509.32745,0.00014609,2]
[420156632,1775735454437,-151.0,0.00014609,2]
[420156633,1775735454447,-550.922457,0.00014609,2]
[420156634,1775735454457,-509.32745,0.00014609,2]
[420156635,1775735454467,-206.655348,0.00014609,2]
[420156636,1775735454477,-1223.280238,0.00014609,2]
[420156637,1775735454488,-1223.280238,0.00014609,2]
[420156638,1775735454498,-151.0,0.00014609,2]
[420156639,1775735454509,-151.0,0.00014609,2]
[420156640,1775735454519,-1223.280238,0.00014609,2]
[420156641,1775735454529,-638.564593,0.00014609,2]
[420156642,1775735454539,-151.0,0.00014609,2]
[420156643,1775735454549,-460.104724,0.00014609,2]
[420156644,1775735454559,-1223.280238,0.00014609,2]
[420156645,1775735454569,-638.564593,0.00014609,2]
[420156646,1775735454579,-151.0,0.00014609,2]
[420156647,1775735454589,-460.104724,0.00014609,2]
[420156648,1775735454599,-638.564593,0.00014609,2]
[420156649,1775735454609,-578.068022,0.00014609,2]
[420156650,1775735454619,-460.104724,0.00014609,2]
[420156651,1775735454629,-638.564593,0.00014609,2]
[420156652,1775735454639,-578.068022,0.00014609,2]
[420156653,1775735454649,-460.104724,0.00014609,2]
[420156654,1775735454659,-578.068022,0.00014609,2]
[420156655,1775735454669,-151.0,0.00014609,2]
[420156656,1775735454679,-578.068022,0.00014609,2]
[420156657,1775735454688,-151.0,0.00014609,2]
[420156658,1775735454698,-151.0,0.00014609,2]
[420156659,1775735454708,-428.509352,0.00014609,2]
[420156660,1775735454718,-428.509352,0.00014609,2]
[420156661,1775735454728,-428.509352,0.00014609,2]
[420156662,1775735454738,-428.509352,0.00014609,2]
[420156663,1775735454748,-151.0,0.00014609,2]
[420156664,1775735454758,-151.0,0.00014609,2]
[420156665,1775735454768,-216.580518,0.00014609,2]
[420156666,1775735454778,-151.0,0.00014609,2]
[420156667,1775735454788,-151.0,0.00014609,2]
[420156668,1775735454798,-151.0,0.00014609,2]
[420156669,1775735454808,-151.0,0.00014609,2]
[420156670,1775735454818,-221.889438,0.00014609,2]
[420156671,1775735454828,-378.316153,0.00014609,2]
[420156672,1775735454838,-854.312616,0.00014609,2]
[420156673,1775735454848,-378.316153,0.00014609,2]
[420156674,1775735454858,-680.274183,0.00014609,2]
[420156675,1775735454868,-378.316153,0.00014609,2]
[420156676,1775735454877,-854.312616,0.00014609,2]
[420156677,1775735454887,-680.274183,0.00014609,2]
[420156678,1775735454897,-378.316153,0.00014609,2]
[420156679,1775735454906,-854.312616,0.00014609,2]
[420156680,1775735454915,-680.274183,0.00014609,2]
[420156681,1775735454925,-854.312616,0.00014609,2]
[420156682,1775735454935,-680.274183,0.00014609,2]
[420156683,1775735454945,-645.46557,0.00014609,2]
[420156684,1775735454954,-645.46557,0.00014609,2]
[420156685,1775735454964,-1162.763235,0.00014609,2]
[420156686,1775735454974,-645.46557,0.00014609,2]
[420156687,1775735454983,-1162.763235,0.00014609,2]
[420156688,1775735454993,-645.46557,0.00014609,2]
[420156689,1775735455002,-1162.763235,0.00014609,2]
[420156690,1775735455012,-1162.763235,0.00014609,2]
[420156691,1775735455022,-3000.0,0.00014614,2]
[420156692,1775735455032,-1185.412147,0.00014614,2]
[420156693,1775735455042,-157.888769,0.00014614,2]
[420156694,1775735455052,-1185.412147,0.00014614,2]
[420156695,1775735455062,-151.0,0.00014614,2]
[420156696,1775735455072,-1185.412147,0.00014614,2]
[420156697,1775735455081,-157.888769,0.00014614,2]
[420156698,1775735455092,-151.0,0.00014614,2]
[420156699,1775735455102,-1185.412147,0.00014614,2]
[420156700,1775735455112,-157.888769,0.00014614,2]
[420156701,1775735455122,-151.0,0.00014614,2]
[420156702,1775735455132,-338.153046,0.00014614,2]
[420156703,1775735455142,-151.0,0.00014614,2]
[420156704,1775735455152,-157.888769,0.00014614,2]
[420156705,1775735455162,-151.0,0.00014614,2]
[420156706,1775735455172,-151.0,0.00014614,2]
[420156707,1775735455182,-248.188065,0.00014614,2]
[420156708,1775735455191,-338.153046,0.00014614,2]
[420156709,1775735455201,-151.0,0.00014614,2]
[420156710,1775735455211,-984.45069,0.00014614,2]
[420156711,1775735455220,-248.188065,0.00014614,2]
[420156712,1775735455231,-338.153046,0.00014614,2]
[420156713,1775735455241,-2442.065258,0.00014614,2]
[420156714,1775735455252,-1716.123877,0.00014614,2]
[420156715,1775735455261,-172.259333,0.00014614,2]
[420156716,1775735455271,-984.45069,0.00014614,2]
[420156717,1775735455282,-248.188065,0.00014614,2]
[420156718,1775735455292,-2442.065258,0.00014614,2]
[420156719,1775735455302,-151.0,0.00014614,2]
[420156720,1775735455312,-338.153046,0.00014614,2]
[420156721,1775735455322,-984.45069,0.00014614,2]
[420156722,1775735455333,-1716.123877,0.00014614,2]
[420156723,1775735455344,-248.188065,0.00014614,2]
[420156724,1775735455354,-2442.065258,0.00014614,2]
[420156725,1775735455363,-151.0,0.00014614,2]
[420156726,1775735455374,-984.45069,0.00014614,2]
[420156727,1775735455384,-1716.123877,0.00014614,2]
[420156728,1775735455394,-2442.065258,0.00014614,2]
[420156729,1775735455404,-151.0,0.00014614,2]
[420156730,1775735455414,-934.47175,0.00014614,2]
[420156731,1775735455424,-151.0,0.00014614,2]
[420156732,1775735455433,-1716.123877,0.00014614,2]
[420156733,1775735455444,-151.0,0.00014614,2]
[420156734,1775735455454,-859.514632,0.00014614,2]
[420156735,1775735455464,-934.47175,0.00014614,2]
[420156736,1775735455474,-151.0,0.00014614,2]
[420156737,1775735455484,-335.411526,0.00014614,2]
[420156738,1775735455495,-151.0,0.00014614,2]
[420156739,1775735455505,-859.514632,0.00014614,2]
[420156740,1775735455516,-934.47175,0.00014614,2]
[420156741,1775735455525,-335.411526,0.00014614,2]
[420156742,1775735455535,-859.514632,0.00014614,2]
[420156743,1775735455545,-151.0,0.00014614,2]
[420156744,1775735455557,-170.513675,0.00014614,2]
[420156745,1775735455566,-934.47175,0.00014614,2]
[420156746,1775735455576,-335.411526,0.00014614,2]
[420156747,1775735455586,-859.514632,0.00014614,2]
[420156748,1775735455596,-151.0,0.00014614,2]
[420156749,1775735455605,-170.513675,0.00014614,2]
[420156750,1775735455615,-335.411526,0.00014614,2]
[420156751,1775735455624,-151.0,0.00014614,2]
[420156752,1775735455634,-170.513675,0.00014614,2]
[420156753,1775735455643,-151.0,0.00014614,2]
[420156754,1775735455652,-170.513675,0.00014614,2]
[420156755,1775735455662,-151.0,0.00014614,2]
[420156756,1775735455671,-170.593914,0.00014614,2]
[420156757,1775735455680,-170.593914,0.00014614,2]
[420156758,1775735455690,-151.0,0.00014614,2]
[420156759,1775735455699,-170.593914,0.00014614,2]
[420156760,1775735455710,-170.593914,0.00014614,2]
[420156761,1775735455719,-165.728537,0.00014614,2]
[420156762,1775735455729,-165.728537,0.00014614,2]
[420156763,1775735455739,-178.765211,0.00014614,2]
[420156764,1775735455749,-178.765211,0.00014614,2]
[420156765,1775735455758,-165.728537,0.00014614,2]
[420156766,1775735455768,-178.765211,0.00014614,2]
[420156767,1775735455777,-165.728537,0.00014614,2]
[420156768,1775735455787,-178.765211,0.00014614,2]
[420156769,1775735455796,-228.366184,0.00014614,2]
[420156770,1775735455806,-228.366184,0.00014614,2]
[420156771,1775735455815,-171.867948,0.00014614,2]
[420156772,1775735455825,-228.366184,0.00014614,2]
[420156773,1775735455835,-171.867948,0.00014614,2]
[420156774,1775735455844,-228.366184,0.00014614,2]
[420156775,1775735455853,-171.867948,0.00014614,2]
[420156776,1775735455863,-166.66,0.00014616,2]
[420156777,1775735455873,-454.47775275,0.00014631,2]
[420156778,1775735455882,-5217.24905487,0.00014666,2]
[420156779,1775735455891,-19760.81793985,0.00014718,2]
[420156780,1775735455901,-155.0,0.00014729,2]
[420156781,1775735455910,-261.81,0.00014795,2]
[420156782,1775735455920,-1377.524502,0.00014811,2]
[420156783,1775735455930,-2099.008089,0.00014811,7]
[420156784,1775735455940,-773.655785,0.00014811,7]
[420156785,1775735456311,-753.477361,0.00014811,2]
[420156786,1775735456333,-1087.769161,0.00014811,7]
[420156787,1775735456343,-940.459152,0.00014811,7]
[420156788,1775735456353,-1000.0,0.00014817,2]
[420156789,1775735456362,-200.0,0.00014868,2]
[420156790,1775735456372,-601.3376128,0.00014868,2]
[420156791,1775735456382,-578.20924308,0.00014868,2]
[420156792,1775735456392,-500.0,0.00014868,2]
[420156793,1775735456401,-3996.64582228,0.00014868,2]
[420156794,1775735456411,-1191.11104075,0.00014868,2]
[420156795,1775735456421,-174.61919141,0.00014868,2]
[420156796,1775735456431,-743.50770149,0.00014868,2]
[420156797,1775735456441,-1500.0,0.00014868,2]
[420156798,1775735456451,-303.98027082,0.00014868,2]
[420156799,1775735456460,-1500.0,0.00014868,2]
[420156800,1775735456470,-151.0,0.00014868,2]
[420156801,1775735456479,-1500.0,0.00014868,2]
[420156802,1775735456489,-1500.0,0.00014868,2]
[420156803,1775735456498,-1500.0,0.00014868,2]
[420156804,1775735456508,-1500.0,0.00014868,2]
[420156805,1775735456517,-1500.0,0.00014868,2]
[420156806,1775735456527,-1500.0,0.00014868,2]
[420156807,1775735456537,-1500.0,0.00014868,2]
[420156808,1775735456546,-1500.0,0.00014868,2]
[420156809,1775735456556,-174.61919141,0.00014868,2]
[420156810,1775735456566,-1627.46733313,0.00014868,2]
[420156811,1775735456575,-578.20924308,0.00014868,2]
[420156812,1775735456585,-279.9045709,0.00014868,2]
[420156813,1775735456594,-666.0,0.00014891,2]
[420156814,1775735456603,-151.0,0.00014892,2]
[420156815,1775735456613,-151.0,0.00014892,2]
[420156816,1775735456623,-151.0,0.00014892,2]
[420156817,1775735456633,-151.0,0.00014892,2]
[420156818,1775735456642,-254.239938,0.00014892,2]
[420156819,1775735456651,-151.0,0.00014892,2]
[420156820,1775735456661,-254.239938,0.00014892,2]
[420156821,1775735456671,-254.239938,0.00014892,2]
[420156822,1775735456680,-254.239938,0.00014892,2]
[420156823,1775735456689,-151.0,0.00014892,2]
[420156824,1775735456699,-151.0,0.00014892,2]
[420156825,1775735456708,-395.993179,0.00014892,2]
[420156826,1775735456718,-151.0,0.00014892,2]
[420156827,1775735456728,-395.993179,0.00014892,2]
[420156828,1775735456738,-759.351761,0.00014892,2]
[420156829,1775735456748,-395.993179,0.00014892,2]
[420156830,1775735456757,-151.0,0.00014892,2]
[420156831,1775735456767,-759.351761,0.00014892,2]
[420156832,1775735456777,-151.0,0.00014892,2]
[420156833,1775735456787,-395.993179,0.00014892,2]
[420156834,1775735456796,-151.0,0.00014892,2]
[420156835,1775735456806,-759.351761,0.00014892,2]
[420156836,1775735456816,-229.62413,0.00014892,2]
[420156837,1775735456825,-759.351761,0.00014892,2]
[420156838,1775735456836,-444.114815,0.00014892,2]
[420156839,1775735456846,-444.114815,0.00014892,2]
[420156840,1775735456856,-444.114815,0.00014892,2]
[420156841,1775735456865,-444.114815,0.00014892,2]
[420156842,1775735456875,-151.0,0.00014892,2]
[420156843,1775735456884,-795.875483,0.00014892,2]
[420156844,1775735456894,-1681.414266,0.00014892,2]
[420156845,1775735456903,-151.0,0.00014892,2]
[420156846,1775735456912,-795.875483,0.00014892,2]
[420156847,1775735456922,-1681.414266,0.00014892,2]
[420156848,1775735456931,-151.0,0.00014892,2]
[420156849,1775735456941,-795.875483,0.00014892,2]
[420156850,1775735456951,-1681.414266,0.00014892,2]
[420156851,1775735456961,-151.0,0.00014892,2]
[420156852,1775735456971,-151.0,0.00014892,2]
[420156853,1775735456981,-795.875483,0.00014892,2]
[420156854,1775735456991,-1681.414266,0.00014892,2]
[420156855,1775735457001,-151.0,0.00014892,2]
[420156856,1775735457011,-555.069348,0.00014892,2]
[420156857,1775735457021,-234.247138,0.00014892,2]
[420156858,1775735457030,-555.069348,0.00014892,2]
[420156859,1775735457040,-234.247138,0.00014892,2]
[420156860,1775735457050,-151.0,0.00014892,2]
[420156861,1775735457060,-555.069348,0.00014892,2]
[420156862,1775735457069,-153.179678,0.00014892,2]
[420156863,1775735457080,-234.247138,0.00014892,2]
[420156864,1775735457089,-555.069348,0.00014892,2]
[420156865,1775735457099,-153.179678,0.00014892,2]
[420156866,1775735457108,-234.247138,0.00014892,2]
[420156867,1775735457118,-151.0,0.00014892,2]
[420156868,1775735457128,-153.179678,0.00014892,2]
[420156869,1775735457137,-153.179678,0.00014892,2]
[420156870,1775735457147,-641.362299,0.00014892,2]
[420156871,1775735457156,-641.362299,0.00014892,2]
[420156872,1775735457166,-641.362299,0.00014892,2]
[420156873,1775735457175,-641.362299,0.00014892,2]
[420156874,1775735457185,-151.0,0.00014892,2]
[420156875,1775735457195,-151.0,0.00014892,2]
[420156876,1775735457206,-151.0,0.00014892,2]
[420156877,1775735457216,-151.0,0.00014892,2]
[420156878,1775735457226,-151.0,0.00014892,2]
[420156879,1775735457235,-151.0,0.00014892,2]
[420156880,1775735457245,-199.580976,0.00014892,2]
[420156881,1775735457255,-151.0,0.00014892,2]
[420156882,1775735457264,-151.0,0.00014892,2]
[420156883,1775735457273,-151.0,0.00014892,2]
[420156884,1775735457283,-151.0,0.00014892,2]
[420156885,1775735457292,-151.0,0.00014892,2]
[420156886,1775735457302,-172.035555,0.00014892,2]
[420156887,1775735457312,-172.035555,0.00014892,2]
[420156888,1775735457321,-151.0,0.00014892,2]
[420156889,1775735457332,-172.035555,0.00014892,2]
[420156890,1775735457342,-172.035555,0.00014892,2]
[420156891,1775735457351,-305.002892,0.00014892,2]
[420156892,1775735457361,-305.002892,0.00014892,2]
[420156893,1775735457370,-151.0,0.00014892,2]
[420156894,1775735457380,-305.002892,0.00014892,2]
[420156895,1775735457389,-155.633897,0.00014892,2]
[420156896,1775735457399,-151.0,0.00014892,2]
[420156897,1775735457408,-305.002892,0.00014892,2]
[420156898,1775735457418,-155.633897,0.00014892,2]
[420156899,1775735457428,-151.0,0.00014892,2]
[420156900,1775735457438,-155.633897,0.00014892,2]
[420156901,1775735457447,-151.0,0.00014892,2]
[420156902,1775735457458,-155.633897,0.00014892,2]
[420156903,1775735457468,-299.222686,0.00014892,2]
[420156904,1775735457478,-299.222686,0.00014892,2]
[420156905,1775735457488,-299.222686,0.00014892,2]
[420156906,1775735457497,-299.222686,0.00014892,2]
[420156907,1775735457507,-151.0,0.00014892,2]
[420156908,1775735457516,-151.0,0.00014892,2]
[420156909,1775735457526,-3100.0,0.000149,5]
[420156910,1775735457536,-496.76951482,0.00014906,2]
[420156911,1775735457545,-177.5618893,0.0001492,5]
[420156912,1775735457554,-1000.0,0.00014921,2]
[420156913,1775735457565,-1000.0,0.00014921,2]
[420156914,1775735457574,-1000.0,0.00014921,2]
[420156915,1775735457584,-1000.0,0.00014921,2]
[420156916,1775735457593,-1001.59977952,0.00014921,2]
[420156917,1775735457604,-1000.0,0.00014921,2]
[420156918,1775735457613,-1000.0,0.00014921,2]
[420156919,1775735457623,-151.41120788,0.00014921,2]
[420156920,1775735457632,-500.0,0.00014923,2]
[420156921,1775735457642,-151.0,0.00014923,2]
[420156922,1775735457652,-579.29118204,0.00014964,2]
[420156923,1775735457662,-500.0,0.00014964,2]
[420156924,1775735457672,-500.0,0.00014964,2]
[420156925,1775735457681,-500.0,0.00014964,2]
[420156926,1775735457691,-500.0,0.00014964,2]
[420156927,1775735457701,-313.47923887,0.00014964,2]
[420156928,1775735457710,-546.26,0.00014964,2]
[420156929,1775735457720,-500.0,0.00014964,2]
[420156930,1775735457729,-500.0,0.00014964,2]
[420156931,1775735457739,-596.17530867,0.00014964,2]
[420156932,1775735457749,-500.0,0.00014964,2]
[420156933,1775735457759,-500.0,0.00014964,2]
[420156934,1775735457769,-535.24,0.00014964,2]
[420156935,1775735457778,-307.8078156,0.00014964,2]
[420156936,1775735457788,-500.0,0.00014964,2]
[420156937,1775735457797,-500.0,0.00014964,2]
[420156938,1775735457807,-612.52,0.00014964,2]
[420156939,1775735457816,-4761.13,0.00014964,2]
[420156940,1775735457826,-500.0,0.00014964,2]
[420156941,1775735457835,-511.5,0.00014964,2]
[420156942,1775735457844,-502.11524689,0.00014964,2]
[420156943,1775735457854,-500.0,0.00014978,2]
[420156944,1775735457863,-151.0,0.00014978,2]
[420156945,1775735457873,-197.15242817,0.00014984,2]
[420156946,1775735457883,-165.00942595,0.00014984,2]
[420156947,1775735457892,-451.51554887,0.00014984,2]
[420156948,1775735457901,-509.48915873,0.00014984,2]
[420156949,1775735457910,-200.66972745,0.00014984,2]
[420156950,1775735457920,-232.44777321,0.00014984,2]
[420156951,1775735457930,-1256.0,0.00015,2]
[420156952,1775735457939,-676.0,0.00015,2]
[420156953,1775735457948,-1886.76035795,0.00015,2]
[420156954,1775735457957,-247.297247,0.00015,2]
[420156955,1775735457967,-247.297247,0.00015,2]
[420156956,1775735457976,-242.076907,0.00015,2]
[420156957,1775735457986,-247.297247,0.00015,2]
[420156958,1775735457996,-193.185108,0.00015,2]
[420156959,1775735458005,-242.076907,0.00015,2]
[420156960,1775735458015,-247.297247,0.00015,2]
[420156961,1775735458025,-151.0,0.00015,2]
[420156962,1775735458035,-193.185108,0.00015,2]
[420156963,1775735458044,-151.0,0.00015,2]
[420156964,1775735458054,-151.0,0.00015,2]
[420156965,1775735458065,-242.076907,0.00015,2]
[420156966,1775735458075,-193.185108,0.00015,2]
[420156967,1775735458085,-293.437498,0.00015,2]
[420156968,1775735458095,-699.570651,0.00015,2]
[420156969,1775735458105,-242.076907,0.00015,2]
[420156970,1775735458115,-193.185108,0.00015,2]
[420156971,1775735458126,-293.437498,0.00015,2]
[420156972,1775735458136,-151.0,0.00015,2]
[420156973,1775735458145,-699.570651,0.00015,2]
[420156974,1775735458155,-151.0,0.00015,2]
[420156975,1775735458165,-151.0,0.00015,2]
[420156976,1775735458175,-293.437498,0.00015,2]
[420156977,1775735458185,-346.125253,0.00015,2]
[420156978,1775735458195,-699.570651,0.00015,2]
[420156979,1775735458205,-346.125253,0.00015,2]
[420156980,1775735458216,-699.570651,0.00015,2]
[420156981,1775735458225,-293.437498,0.00015,2]
[420156982,1775735458236,-151.0,0.00015,2]
[420156983,1775735458246,-346.125253,0.00015,2]
[420156984,1775735458256,-151.0,0.00015,2]
[420156985,1775735458266,-256.451383,0.00015,2]
[420156986,1775735458276,-346.125253,0.00015,2]
[420156987,1775735458287,-151.0,0.00015,2]
[420156988,1775735458296,-151.0,0.00015,2]
[420156989,1775735458307,-256.451383,0.00015,2]
[420156990,1775735458317,-200.618948,0.00015,2]
[420156991,1775735458327,-151.0,0.00015,2]
[420156992,1775735458337,-151.0,0.00015,2]
[420156993,1775735458347,-256.451383,0.00015,2]
[420156994,1775735458358,-200.618948,0.00015,2]
[420156995,1775735458369,-256.451383,0.00015,2]
[420156996,1775735458379,-200.618948,0.00015,2]
[420156997,1775735458389,-151.0,0.00015,2]
[420156998,1775735458400,-200.618948,0.00015,2]
[420156999,1775735458410,-304.28385,0.00015,2]
[420157000,1775735458420,-304.28385,0.00015,2]
[420157001,1775735458430,-151.0,0.00015,2]
[420157002,1775735458440,-304.28385,0.00015,2]
[420157003,1775735458450,-304.28385,0.00015,2]
[420157004,1775735458460,-231.386369,0.00015,2]
[420157005,1775735458471,-231.386369,0.00015,2]
[420157006,1775735458481,-151.0,0.00015,2]
[420157007,1775735458492,-231.386369,0.00015,2]
[420157008,1775735458502,-1880.018353,0.00015,2]
[420157009,1775735458513,-1098.985985,0.00015,2]
[420157010,1775735458523,-231.386369,0.00015,2]
[420157011,1775735458533,-1880.018353,0.00015,2]
[420157012,1775735458544,-1098.985985,0.00015,2]
[420157013,1775735458554,-867.090923,0.00015,2]
[420157014,1775735458564,-1098.985985,0.00015,2]
[420157015,1775735458574,-228.759977,0.00015,2]
[420157016,1775735458584,-867.090923,0.00015,2]
[420157017,1775735458594,-1098.985985,0.00015,2]
[420157018,1775735458604,-151.0,0.00015,2]
[420157019,1775735458615,-228.759977,0.00015,2]
[420157020,1775735458625,-152.086945,0.00015,2]
[420157021,1775735458635,-374.446298,0.00015,2]
[420157022,1775735458646,-867.090923,0.00015,2]
[420157023,1775735458656,-1880.018353,0.00015,2]
[420157024,1775735458666,-228.759977,0.00015,2]
[420157025,1775735458676,-374.446298,0.00015,2]
[420157026,1775735458686,-867.090923,0.00015,2]
[420157027,1775735458695,-1880.018353,0.00015,2]
[420157028,1775735458706,-228.759977,0.00015,2]
[420157029,1775735458719,-374.446298,0.00015,2]
[420157030,1775735458729,-151.0,0.00015,2]
[420157031,1775735458739,-374.446298,0.00015,2]